[Event "Late-Titled-Tuesday-Blitz-February-13-2024"]
[Site "Chess.com"]
[Date "2024.02.13"]
[Round "4"]
[White "Yushko_Olga"]
[Black "Kombinator01"]
[Result "0-1"]
[WhiteElo "2229"]
[BlackElo "2492"]
[TimeControl "180+1"]
[EndTime "14:37:55 PST"]
[Termination "Kombinator01 won by checkmate"]

1. d4 {[%clk 0:02:58.5]} 1... d5 {[%clk 0:02:53.9]} 2. c4 {[%clk 0:02:58.4]}
2... e5 {[%clk 0:02:52.7]} 3. e3 {[%clk 0:02:57.8]} 3... exd4 {[%clk 0:02:42.1]}
4. exd4 {[%clk 0:02:56.9]} 4... Nf6 {[%clk 0:02:41.5]} 5. Nc3 {[%clk 0:02:55.9]}
5... Be7 {[%clk 0:02:39.9]} 6. Nf3 {[%clk 0:02:55.6]} 6... O-O {[%clk 0:02:38]}
7. Be2 {[%clk 0:02:55.4]} 7... dxc4 {[%clk 0:02:37.7]} 8. Bxc4 {[%clk
0:02:56.3]} 8... a6 {[%clk 0:02:36.3]} 9. O-O {[%clk 0:02:55.9]} 9... b5 {[%clk
0:02:36.2]} 10. Be2 {[%clk 0:02:56.3]} 10... Bb7 {[%clk 0:02:36]} 11. h3 {[%clk
0:02:56.1]} 11... Nc6 {[%clk 0:02:31.2]} 12. Be3 {[%clk 0:02:55.8]} 12... Nb4
{[%clk 0:02:29.7]} 13. Rc1 {[%clk 0:02:49.6]} 13... Nbd5 {[%clk 0:02:29]} 14.
Nxd5 {[%clk 0:02:47.6]} 14... Nxd5 {[%clk 0:02:26.3]} 15. Ne5 {[%clk 0:02:45.9]}
15... Nxe3 {[%clk 0:02:18.2]} 16. fxe3 {[%clk 0:02:45.2]} 16... Bg5 {[%clk
0:02:13.4]} 17. Qb3 {[%clk 0:02:34.7]} 17... Bd5 {[%clk 0:02:10]} 18. Qd3 {[%clk
0:02:26.3]} 18... f6 {[%clk 0:01:50]} 19. Nf3 {[%clk 0:02:17.2]} 19... Bh6
{[%clk 0:01:35.9]} 20. b3 {[%clk 0:02:11.1]} 20... Re8 {[%clk 0:01:34.1]} 21.
Rc5 {[%clk 0:01:57.6]} 21... Bxe3+ {[%clk 0:01:13]} 22. Kh1 {[%clk 0:01:57.2]}
22... Bxf3 {[%clk 0:01:12.4]} 23. Bxf3 {[%clk 0:01:58.1]} 23... Qxd4 {[%clk
0:01:12.5]} 24. Qxd4 {[%clk 0:01:50.9]} 24... Bxd4 {[%clk 0:01:13.4]} 25. Rxc7
{[%clk 0:01:50.9]} 25... Rad8 {[%clk 0:00:58.8]} 26. Bb7 {[%clk 0:01:40.4]}
26... Re6 {[%clk 0:00:39.1]} 27. Rd1 {[%clk 0:01:37.5]} 27... h5 {[%clk
0:00:35.9]} 28. a4 {[%clk 0:01:25.2]} 28... Rdd6 {[%clk 0:00:25.7]} 29. axb5
{[%clk 0:01:22.5]} 29... axb5 {[%clk 0:00:26.6]} 30. Rc8+ {[%clk 0:01:22.1]}
30... Kh7 {[%clk 0:00:25.1]} 31. Rc2 {[%clk 0:01:15.4]} 31... Be5 {[%clk
0:00:20.5]} 32. Be4+ {[%clk 0:01:09.5]} 32... Kh6 {[%clk 0:00:20.5]} 33. Rf1
{[%clk 0:01:07.6]} 33... Bg3 {[%clk 0:00:19]} 34. Bf5 {[%clk 0:01:07.5]} 34...
Re5 {[%clk 0:00:19.3]} 35. Bc8 {[%clk 0:01:04.6]} 35... Rd3 {[%clk 0:00:17]} 36.
Bb7 {[%clk 0:01:02.1]} 36... Rxb3 {[%clk 0:00:15.9]} 37. Bf3 {[%clk 0:01:00.5]}
37... b4 {[%clk 0:00:15.9]} 38. Rc7 {[%clk 0:00:57.8]} 38... Rbe3 {[%clk
0:00:14.7]} 39. Rb7 {[%clk 0:00:57.3]} 39... Re1 {[%clk 0:00:14.2]} 40. Kg1
{[%clk 0:00:57.2]} 40... Rxf1+ {[%clk 0:00:13]} 41. Kxf1 {[%clk 0:00:57.1]}
41... Re1# {[%clk 0:00:13.7]} 0-1

[Event "Late-Titled-Tuesday-Blitz-February-13-2024"]
[Site "Chess.com"]
[Date "2024.02.13"]
[Round "4"]
[White "LiemLe"]
[Black "Dedic8"]
[Result "1-0"]
[WhiteElo "3031"]
[BlackElo "2857"]
[TimeControl "180+1"]
[EndTime "14:37:56 PST"]
[Termination "LiemLe won by resignation"]

1. Nf3 {[%clk 0:03:00.9]} 1... d5 {[%clk 0:03:00.6]} 2. e3 {[%clk 0:03:00.6]}
2... Nf6 {[%clk 0:03:01.2]} 3. c4 {[%clk 0:03:00.4]} 3... e6 {[%clk 0:03:01.8]}
4. Nc3 {[%clk 0:02:58.7]} 4... Bd6 {[%clk 0:03:02.4]} 5. b3 {[%clk 0:02:58.2]}
5... b6 {[%clk 0:03:02.4]} 6. Bb2 {[%clk 0:02:57.4]} 6... Nbd7 {[%clk
0:02:59.4]} 7. cxd5 {[%clk 0:02:47.8]} 7... exd5 {[%clk 0:02:59.2]} 8. Rc1
{[%clk 0:02:44.1]} 8... a6 {[%clk 0:02:57.2]} 9. g3 {[%clk 0:02:43.6]} 9... Bb7
{[%clk 0:02:54.7]} 10. Bg2 {[%clk 0:02:43.9]} 10... O-O {[%clk 0:02:44.8]} 11.
O-O {[%clk 0:02:43.5]} 11... c5 {[%clk 0:02:40.5]} 12. d4 {[%clk 0:02:43.2]}
12... c4 {[%clk 0:02:41.1]} 13. Nd2 {[%clk 0:02:39.7]} 13... cxb3 {[%clk
0:02:36.8]} 14. Qxb3 {[%clk 0:02:37.2]} 14... Qe7 {[%clk 0:02:27.1]} 15. Nxd5
{[%clk 0:02:33.8]} 15... Nxd5 {[%clk 0:02:22.5]} 16. Bxd5 {[%clk 0:02:34.7]}
16... Bxd5 {[%clk 0:02:23.2]} 17. Qxd5 {[%clk 0:02:35.5]} 17... Nf6 {[%clk
0:02:24]} 18. Qc6 {[%clk 0:02:27.1]} 18... h6 {[%clk 0:02:08.4]} 19. Nc4 {[%clk
0:02:17.5]} 19... Bb4 {[%clk 0:02:04.6]} 20. Nxb6 {[%clk 0:02:14.3]} 20... Rab8
{[%clk 0:02:03.4]} 21. Nd5 {[%clk 0:02:10.9]} 21... Nxd5 {[%clk 0:01:58]} 22.
Qxd5 {[%clk 0:02:11.8]} 22... Rfd8 {[%clk 0:01:45.3]} 23. Qc4 {[%clk 0:02:09.2]}
23... Qe4 {[%clk 0:01:01]} 24. Rfd1 {[%clk 0:02:04.9]} 24... Qf3 {[%clk
0:00:51.6]} 25. d5 {[%clk 0:02:02]} 25... Be1 {[%clk 0:00:49.4]} 26. Rxe1 {[%clk
0:01:49.1]} 26... Rxb2 {[%clk 0:00:49.2]} 27. Rc2 {[%clk 0:01:32.2]} 27... Rxc2
{[%clk 0:00:49.4]} 28. Qxc2 {[%clk 0:01:33.1]} 28... Qxd5 {[%clk 0:00:47.4]} 29.
Rb1 {[%clk 0:01:23.5]} 29... h5 {[%clk 0:00:45.9]} 30. h4 {[%clk 0:01:23]} 30...
g6 {[%clk 0:00:42.3]} 31. a4 {[%clk 0:01:21.6]} 31... Qe5 {[%clk 0:00:36.1]} 32.
Qc4 {[%clk 0:01:15.1]} 32... Rd2 {[%clk 0:00:22.7]} 33. Qc8+ {[%clk 0:00:57]}
33... Kh7 {[%clk 0:00:18.9]} 34. Rb8 {[%clk 0:00:56.9]} 34... Rd1+ {[%clk
0:00:13.9]} 35. Kh2 {[%clk 0:00:56.1]} 35... Rd3 {[%clk 0:00:06.8]} 36. Qg8+
{[%clk 0:00:55]} 36... Kh6 {[%clk 0:00:07]} 37. Rf8 {[%clk 0:00:48.5]} 37... Rd2
{[%clk 0:00:06.2]} 38. Rxf7 {[%clk 0:00:48]} 1-0

[Event "Late-Titled-Tuesday-Blitz-February-13-2024"]
[Site "Chess.com"]
[Date "2024.02.13"]
[Round "4"]
[White "lucasran"]
[Black "viniciusrego"]
[Result "0-1"]
[WhiteElo "2657"]
[BlackElo "2379"]
[TimeControl "180+1"]
[EndTime "14:37:56 PST"]
[Termination "viniciusrego won on time"]

1. Nf3 {[%clk 0:03:00.9]} 1... g6 {[%clk 0:02:59.8]} 2. d4 {[%clk 0:03:00.5]}
2... Bg7 {[%clk 0:03:00.3]} 3. c4 {[%clk 0:03:01.1]} 3... c5 {[%clk 0:03:00.1]}
4. d5 {[%clk 0:03:00.8]} 4... e6 {[%clk 0:02:59.3]} 5. e4 {[%clk 0:03:00.3]}
5... d6 {[%clk 0:02:57.9]} 6. Be2 {[%clk 0:02:59.8]} 6... Nf6 {[%clk 0:02:49.5]}
7. Nc3 {[%clk 0:02:59.2]} 7... exd5 {[%clk 0:02:48.6]} 8. cxd5 {[%clk
0:02:54.6]} 8... O-O {[%clk 0:02:48.3]} 9. O-O {[%clk 0:02:52.8]} 9... Re8
{[%clk 0:02:48.9]} 10. Nd2 {[%clk 0:02:52.3]} 10... Na6 {[%clk 0:02:36]} 11. h3
{[%clk 0:02:50.8]} 11... Nc7 {[%clk 0:02:32.5]} 12. Bd3 {[%clk 0:02:31]} 12...
Rb8 {[%clk 0:02:30.9]} 13. a4 {[%clk 0:02:27.7]} 13... Na6 {[%clk 0:02:31.2]}
14. Nc4 {[%clk 0:02:22.6]} 14... Nb4 {[%clk 0:02:28.3]} 15. Bb1 {[%clk
0:02:22.6]} 15... Nh5 {[%clk 0:02:18.2]} 16. g4 {[%clk 0:02:09.8]} 16... Qh4
{[%clk 0:02:03.1]} 17. gxh5 {[%clk 0:02:02.5]} 17... Qxh3 {[%clk 0:02:02.2]} 18.
Re1 {[%clk 0:00:48.4]} 18... Bg4 {[%clk 0:01:59.8]} 19. Re3 {[%clk 0:00:48.4]}
19... Qxe3 {[%clk 0:01:40.1]} 20. Nxe3 {[%clk 0:00:44.9]} 20... Bxd1 {[%clk
0:01:40.4]} 21. Nexd1 {[%clk 0:00:41.7]} 21... f5 {[%clk 0:01:37.4]} 22. hxg6
{[%clk 0:00:34.7]} 22... hxg6 {[%clk 0:01:38.3]} 23. Bf4 {[%clk 0:00:28.1]}
23... Rbd8 {[%clk 0:01:29.5]} 24. Ne3 {[%clk 0:00:26.8]} 24... fxe4 {[%clk
0:01:23.6]} 25. Bg5 {[%clk 0:00:14]} 25... Rd7 {[%clk 0:01:20.9]} 26. Ng4 {[%clk
0:00:04.6]} 26... Kf8 {[%clk 0:01:04.6]} 27. Ne3 {[%clk 0:00:04.4]} 27... a6
{[%clk 0:01:00.2]} 28. Bxe4 {[%clk 0:00:04.5]} 28... Bxc3 {[%clk 0:00:58.2]} 29.
bxc3 {[%clk 0:00:05.4]} 29... Rxe4 {[%clk 0:00:57.7]} 30. cxb4 {[%clk
0:00:05.6]} 30... Rxb4 {[%clk 0:00:56.4]} 31. a5 {[%clk 0:00:03.9]} 31... Rf7
{[%clk 0:00:48.8]} 32. Bh6+ {[%clk 0:00:03.9]} 32... Ke8 {[%clk 0:00:48.8]} 33.
Kg2 {[%clk 0:00:03.4]} 33... Kd7 {[%clk 0:00:48.4]} 34. Bg5 {[%clk 0:00:03]}
34... Rh7 {[%clk 0:00:45.5]} 35. f3 {[%clk 0:00:02]} 35... Rh5 {[%clk
0:00:45.6]} 0-1

[Event "Late-Titled-Tuesday-Blitz-February-13-2024"]
[Site "Chess.com"]
[Date "2024.02.13"]
[Round "4"]
[White "CarlosjPineror"]
[Black "LastHeroJr"]
[Result "0-1"]
[WhiteElo "2686"]
[BlackElo "2502"]
[TimeControl "180+1"]
[EndTime "14:37:59 PST"]
[Termination "LastHeroJr won on time"]

1. e4 {[%clk 0:03:00.9]} 1... c6 {[%clk 0:02:57.5]} 2. d4 {[%clk 0:02:59.6]}
2... d5 {[%clk 0:02:53.5]} 3. Nc3 {[%clk 0:02:59.6]} 3... dxe4 {[%clk
0:02:52.3]} 4. Nxe4 {[%clk 0:02:59.6]} 4... Nf6 {[%clk 0:02:50.7]} 5. Nxf6+
{[%clk 0:02:59.4]} 5... exf6 {[%clk 0:02:51.6]} 6. Bc4 {[%clk 0:02:59.7]} 6...
Bd6 {[%clk 0:02:51.7]} 7. Nf3 {[%clk 0:02:48]} 7... O-O {[%clk 0:02:51]} 8. h3
{[%clk 0:02:47.6]} 8... Bf5 {[%clk 0:02:48.9]} 9. O-O {[%clk 0:02:46.4]} 9...
Nd7 {[%clk 0:02:48.9]} 10. Bd3 {[%clk 0:02:46.8]} 10... Bg6 {[%clk 0:02:48.9]}
11. Bxg6 {[%clk 0:02:46.1]} 11... hxg6 {[%clk 0:02:48.7]} 12. Re1 {[%clk
0:02:41.8]} 12... Re8 {[%clk 0:02:48.4]} 13. Bd2 {[%clk 0:02:37.1]} 13... Nf8
{[%clk 0:02:48.3]} 14. c3 {[%clk 0:02:33.9]} 14... Bc7 {[%clk 0:02:48.5]} 15.
Qb3 {[%clk 0:02:32.8]} 15... Qd7 {[%clk 0:02:48.8]} 16. Kf1 {[%clk 0:02:16.9]}
16... b6 {[%clk 0:02:48.7]} 17. Kg1 {[%clk 0:02:16.9]} 17... g5 {[%clk
0:02:47.6]} 18. Qc4 {[%clk 0:02:14.6]} 18... Rac8 {[%clk 0:02:46.1]} 19. Rxe8
{[%clk 0:02:08.2]} 19... Rxe8 {[%clk 0:02:44.9]} 20. Re1 {[%clk 0:02:08.8]}
20... Rxe1+ {[%clk 0:02:44.7]} 21. Bxe1 {[%clk 0:02:08.6]} 21... Ng6 {[%clk
0:02:45]} 22. Bd2 {[%clk 0:02:00.3]} 22... Bf4 {[%clk 0:02:29.5]} 23. Qe2 {[%clk
0:01:51.6]} 23... g4 {[%clk 0:02:24.8]} 24. hxg4 {[%clk 0:01:36.9]} 24... Qxg4
{[%clk 0:02:24.8]} 25. Kf1 {[%clk 0:01:28.5]} 25... Bd6 {[%clk 0:02:21.9]} 26.
g3 {[%clk 0:01:21.3]} 26... Qh3+ {[%clk 0:02:18.5]} 27. Kg1 {[%clk 0:01:16.2]}
27... Qd7 {[%clk 0:02:16.5]} 28. Qe4 {[%clk 0:01:08.9]} 28... f5 {[%clk
0:02:15.3]} 29. Qd3 {[%clk 0:01:06.2]} 29... f4 {[%clk 0:02:14.8]} 30. gxf4
{[%clk 0:00:58.2]} 30... Qg4+ {[%clk 0:02:14.6]} 31. Kf1 {[%clk 0:00:58]} 31...
Bxf4 {[%clk 0:02:14.6]} 32. Qe4 {[%clk 0:00:22.4]} 32... Qh3+ {[%clk 0:02:12.5]}
33. Ke2 {[%clk 0:00:20.7]} 33... Bxd2 {[%clk 0:02:06.9]} 34. Nxd2 {[%clk
0:00:19.2]} 34... Qh5+ {[%clk 0:02:05.1]} 35. Qf3 {[%clk 0:00:15.2]} 35... Qb5+
{[%clk 0:02:05]} 36. c4 {[%clk 0:00:13.7]} 36... Qxb2 {[%clk 0:02:04.3]} 37.
Qxc6 {[%clk 0:00:13.4]} 37... Qxd4 {[%clk 0:02:00.8]} 38. Qa8+ {[%clk
0:00:11.4]} 38... Kh7 {[%clk 0:02:00.3]} 39. Qh1+ {[%clk 0:00:12.1]} 39... Kg8
{[%clk 0:01:59.6]} 40. Qa8+ {[%clk 0:00:12.5]} 40... Nf8 {[%clk 0:01:57.7]} 41.
Qxa7 {[%clk 0:00:11.9]} 41... g6 {[%clk 0:01:58]} 42. Qe7 {[%clk 0:00:10.8]}
42... Ne6 {[%clk 0:01:54.2]} 43. Qa3 {[%clk 0:00:08.2]} 43... Nf4+ {[%clk
0:01:53.4]} 44. Kd1 {[%clk 0:00:08.7]} 44... Qxf2 {[%clk 0:01:50.8]} 45. Kc2
{[%clk 0:00:07.5]} 45... Ne6 {[%clk 0:01:46]} 46. Qc3 {[%clk 0:00:06.3]} 46...
Qf5+ {[%clk 0:01:43.3]} 47. Kb2 {[%clk 0:00:05.6]} 47... g5 {[%clk 0:01:41.8]}
48. a3 {[%clk 0:00:01.4]} 48... g4 {[%clk 0:01:41.9]} 49. a4 {[%clk 0:00:01.9]}
49... Qf4 {[%clk 0:01:38.5]} 50. Qd3 {[%clk 0:00:01.8]} 50... g3 {[%clk
0:01:34.7]} 51. Ne4 {[%clk 0:00:02.3]} 51... Qe5+ {[%clk 0:01:31.6]} 52. Kb3
{[%clk 0:00:02.5]} 52... Qxe4 {[%clk 0:01:29.7]} 0-1

[Event "Late-Titled-Tuesday-Blitz-February-13-2024"]
[Site "Chess.com"]
[Date "2024.02.13"]
[Round "4"]
[White "Smiechu"]
[Black "CrushingKings"]
[Result "0-1"]
[WhiteElo "2428"]
[BlackElo "2645"]
[TimeControl "180+1"]
[EndTime "14:38:00 PST"]
[Termination "CrushingKings won by checkmate"]

1. e4 {[%clk 0:02:53.5]} 1... g6 {[%clk 0:03:00.9]} 2. d4 {[%clk 0:02:52.9]}
2... Bg7 {[%clk 0:02:58.8]} 3. Nc3 {[%clk 0:02:49.5]} 3... c6 {[%clk 0:02:59.7]}
4. Be3 {[%clk 0:02:48.5]} 4... d5 {[%clk 0:02:56.4]} 5. e5 {[%clk 0:02:44]} 5...
f6 {[%clk 0:02:56.6]} 6. exf6 {[%clk 0:02:41.8]} 6... Nxf6 {[%clk 0:02:56.4]} 7.
Nf3 {[%clk 0:02:40.8]} 7... Bg4 {[%clk 0:02:50.9]} 8. Be2 {[%clk 0:02:39.3]}
8... O-O {[%clk 0:02:49.5]} 9. h3 {[%clk 0:02:38.7]} 9... Bxf3 {[%clk
0:02:49.7]} 10. Bxf3 {[%clk 0:02:38.9]} 10... Nbd7 {[%clk 0:02:50.4]} 11. Bf4
{[%clk 0:02:14.3]} 11... e5 {[%clk 0:02:17.1]} 12. dxe5 {[%clk 0:02:11.7]} 12...
Ne4 {[%clk 0:02:14.9]} 13. Bxe4 {[%clk 0:01:41.8]} 13... Rxf4 {[%clk 0:02:13.9]}
14. Bxd5+ {[%clk 0:01:02.3]} 14... cxd5 {[%clk 0:02:11]} 15. Qxd5+ {[%clk
0:01:02.3]} 15... Kh8 {[%clk 0:02:10.3]} 16. O-O-O {[%clk 0:01:01.7]} 16... Qg5
{[%clk 0:02:05.1]} 17. Kb1 {[%clk 0:00:43.2]} 17... Nxe5 {[%clk 0:02:03.9]} 18.
g3 {[%clk 0:00:30.2]} 18... Rf3 {[%clk 0:01:50.3]} 19. Rhe1 {[%clk 0:00:23.3]}
19... Raf8 {[%clk 0:01:44.6]} 20. h4 {[%clk 0:00:20.6]} 20... Qf5 {[%clk
0:01:37.3]} 21. Ne4 {[%clk 0:00:19.5]} 21... Ng4 {[%clk 0:01:29]} 22. Qxb7
{[%clk 0:00:18.7]} 22... Nxf2 {[%clk 0:01:25.2]} 23. Rd7 {[%clk 0:00:16.9]}
23... Qe5 {[%clk 0:00:27.8]} 24. Rd5 {[%clk 0:00:11.2]} 24... Qe6 {[%clk
0:00:20.4]} 25. Rd7 {[%clk 0:00:08.6]} 25... Nxe4 {[%clk 0:00:18.8]} 26. Rxg7
{[%clk 0:00:07.7]} 26... Nd2+ {[%clk 0:00:18.8]} 27. Kc1 {[%clk 0:00:04.4]}
27... Qxe1# {[%clk 0:00:19.7]} 0-1

[Event "Late-Titled-Tuesday-Blitz-February-13-2024"]
[Site "Chess.com"]
[Date "2024.02.13"]
[Round "4"]
[White "Bigfish1995"]
[Black "Willhaven3"]
[Result "1-0"]
[WhiteElo "3167"]
[BlackElo "2626"]
[TimeControl "180+1"]
[EndTime "14:38:01 PST"]
[Termination "Bigfish1995 won on time"]

1. e4 {[%clk 0:02:40.3]} 1... c5 {[%clk 0:02:59.8]} 2. Nf3 {[%clk 0:02:38.1]}
2... Nc6 {[%clk 0:02:59.9]} 3. Bb5 {[%clk 0:02:37.3]} 3... g6 {[%clk 0:02:59.7]}
4. O-O {[%clk 0:02:36.6]} 4... Nf6 {[%clk 0:02:59.5]} 5. Re1 {[%clk 0:02:35.6]}
5... Bg7 {[%clk 0:02:59.5]} 6. c3 {[%clk 0:02:31]} 6... O-O {[%clk 0:02:56.8]}
7. h3 {[%clk 0:02:31.6]} 7... Qb6 {[%clk 0:02:55.4]} 8. Na3 {[%clk 0:02:29.7]}
8... d6 {[%clk 0:02:53.8]} 9. d4 {[%clk 0:02:17.2]} 9... a6 {[%clk 0:02:53.7]}
10. Bxc6 {[%clk 0:02:16.5]} 10... bxc6 {[%clk 0:02:43.3]} 11. e5 {[%clk
0:02:12.6]} 11... Nd5 {[%clk 0:02:41.5]} 12. exd6 {[%clk 0:02:09.2]} 12... exd6
{[%clk 0:02:41.5]} 13. Nc4 {[%clk 0:02:09.8]} 13... Qc7 {[%clk 0:02:35.7]} 14.
dxc5 {[%clk 0:02:07.6]} 14... dxc5 {[%clk 0:02:36.6]} 15. Qa4 {[%clk 0:02:04.2]}
15... Rb8 {[%clk 0:02:24.2]} 16. Qa5 {[%clk 0:01:57.6]} 16... Qa7 {[%clk
0:02:24]} 17. Nfe5 {[%clk 0:01:52.5]} 17... Rb5 {[%clk 0:02:19.8]} 18. Qa3
{[%clk 0:01:41.5]} 18... Qc7 {[%clk 0:02:16.6]} 19. Nd3 {[%clk 0:01:35.9]} 19...
Rd8 {[%clk 0:01:47.8]} 20. Bg5 {[%clk 0:01:31.5]} 20... f6 {[%clk 0:01:46]} 21.
Bh4 {[%clk 0:01:31.6]} 21... Bf8 {[%clk 0:00:56.4]} 22. Bg3 {[%clk 0:01:28.3]}
22... Qf7 {[%clk 0:00:54.9]} 23. Rad1 {[%clk 0:01:18.1]} 23... Be7 {[%clk
0:00:49.9]} 24. Nce5 {[%clk 0:01:15.4]} 24... fxe5 {[%clk 0:00:47.2]} 25. Nxe5
{[%clk 0:01:16.3]} 25... Qf6 {[%clk 0:00:23.5]} 26. c4 {[%clk 0:01:14.1]} 26...
Rb4 {[%clk 0:00:21]} 27. cxd5 {[%clk 0:01:10.5]} 27... cxd5 {[%clk 0:00:21.9]}
28. Nc6 {[%clk 0:00:56.4]} 28... Qxc6 {[%clk 0:00:21.2]} 29. Rxe7 {[%clk
0:00:57]} 29... d4 {[%clk 0:00:15.5]} 30. Rde1 {[%clk 0:00:52.9]} 30... Bb7
{[%clk 0:00:14.8]} 31. f3 {[%clk 0:00:50.9]} 31... d3 {[%clk 0:00:08.8]} 32. Qc3
{[%clk 0:00:46.4]} 32... Rdd4 {[%clk 0:00:05.5]} 33. Re8+ {[%clk 0:00:40.1]}
33... Kf7 {[%clk 0:00:04.6]} 34. R1e7+ {[%clk 0:00:40.7]} 34... Kf6 {[%clk
0:00:04]} 35. Qd2 {[%clk 0:00:41.3]} 1-0

[Event "Late-Titled-Tuesday-Blitz-February-13-2024"]
[Site "Chess.com"]
[Date "2024.02.13"]
[Round "4"]
[White "egnfanclub"]
[Black "Bryanl106"]
[Result "0-1"]
[WhiteElo "2338"]
[BlackElo "2523"]
[TimeControl "180+1"]
[EndTime "14:38:02 PST"]
[Termination "Bryanl106 won on time"]

1. e4 {[%clk 0:03:00.9]} 1... e5 {[%clk 0:02:56.6]} 2. Nc3 {[%clk 0:02:55.8]}
2... Nf6 {[%clk 0:02:56]} 3. f4 {[%clk 0:02:55.6]} 3... d5 {[%clk 0:02:50.7]} 4.
fxe5 {[%clk 0:02:55.2]} 4... Nxe4 {[%clk 0:02:50.9]} 5. d3 {[%clk 0:02:55.8]}
5... Nxc3 {[%clk 0:02:27.2]} 6. bxc3 {[%clk 0:02:56.7]} 6... c5 {[%clk
0:02:26.2]} 7. Nf3 {[%clk 0:02:56.4]} 7... Nc6 {[%clk 0:02:26.1]} 8. Be2 {[%clk
0:02:56.6]} 8... d4 {[%clk 0:02:25]} 9. O-O {[%clk 0:02:50.7]} 9... Be7 {[%clk
0:02:23.9]} 10. Qe1 {[%clk 0:02:50.5]} 10... O-O {[%clk 0:02:20.5]} 11. Qg3
{[%clk 0:02:50]} 11... Re8 {[%clk 0:02:17.7]} 12. Bh6 {[%clk 0:02:12.3]} 12...
Bf8 {[%clk 0:02:16.7]} 13. Rae1 {[%clk 0:02:00.5]} 13... dxc3 {[%clk 0:02:10.7]}
14. Bd1 {[%clk 0:02:00.5]} 14... Bf5 {[%clk 0:02:03.5]} 15. Bg5 {[%clk
0:01:55.1]} 15... Qd7 {[%clk 0:02:00.6]} 16. Nh4 {[%clk 0:01:34.6]} 16... Bg6
{[%clk 0:01:56.4]} 17. Bg4 {[%clk 0:01:24.7]} 17... Qd4+ {[%clk 0:01:53.3]} 18.
Kh1 {[%clk 0:01:07.7]} 18... Rxe5 {[%clk 0:01:45.3]} 19. Nf3 {[%clk 0:00:52.8]}
19... Rxe1 {[%clk 0:01:44.7]} 20. Rxe1 {[%clk 0:00:49.8]} 20... Qa4 {[%clk
0:01:43.6]} 21. h4 {[%clk 0:00:46.1]} 21... Qxc2 {[%clk 0:01:38.7]} 22. h5
{[%clk 0:00:46.4]} 22... Bxd3 {[%clk 0:01:38.5]} 23. h6 {[%clk 0:00:41]} 23...
Bg6 {[%clk 0:01:32.6]} 24. Rc1 {[%clk 0:00:26.7]} 24... Qxa2 {[%clk 0:01:27.3]}
25. Rxc3 {[%clk 0:00:25.3]} 25... gxh6 {[%clk 0:01:27]} 26. Be3 {[%clk
0:00:22.5]} 26... Re8 {[%clk 0:01:18.6]} 27. Kh2 {[%clk 0:00:20.1]} 27... Qa5
{[%clk 0:01:16.4]} 28. Bd2 {[%clk 0:00:18.2]} 28... Qd8 {[%clk 0:01:15.6]} 29.
Bf5 {[%clk 0:00:12.3]} 29... Bd6 {[%clk 0:01:15.6]} 30. Bf4 {[%clk 0:00:11.3]}
30... Bxf4 {[%clk 0:01:14.8]} 31. Qxf4 {[%clk 0:00:12.2]} 31... Qb8 {[%clk
0:01:15.2]} 32. Qxb8 {[%clk 0:00:11.2]} 32... Rxb8 {[%clk 0:01:16.1]} 33. Bxg6
{[%clk 0:00:11.8]} 33... hxg6 {[%clk 0:01:17]} 34. Rxc5 {[%clk 0:00:12.4]} 34...
Nd8 {[%clk 0:01:16.5]} 35. Rc7 {[%clk 0:00:11.8]} 35... Ne6 {[%clk 0:01:16.8]}
36. Rd7 {[%clk 0:00:10.6]} 36... Nf8 {[%clk 0:01:11.5]} 37. Rc7 {[%clk
0:00:09.4]} 37... Ne6 {[%clk 0:01:10.1]} 38. Rd7 {[%clk 0:00:09.3]} 38... a5
{[%clk 0:01:10.6]} 39. Ne5 {[%clk 0:00:09.1]} 39... Nd8 {[%clk 0:01:11]} 40. Rd4
{[%clk 0:00:04.3]} 40... b5 {[%clk 0:01:10.6]} 41. Nd7 {[%clk 0:00:04.4]} 41...
Ne6 {[%clk 0:01:04.7]} 42. Rd6 {[%clk 0:00:03]} 42... Rd8 {[%clk 0:01:04.8]} 43.
Nf6+ {[%clk 0:00:03]} 43... Kg7 {[%clk 0:01:05.1]} 44. Rxd8 {[%clk 0:00:02.4]}
44... Nxd8 {[%clk 0:01:06]} 45. Nd5 {[%clk 0:00:02.6]} 45... b4 {[%clk
0:01:05.4]} 46. Nb6 {[%clk 0:00:01.1]} 46... Ne6 {[%clk 0:01:04]} 47. Na4 {[%clk
0:00:02]} 47... Nd4 {[%clk 0:01:03.8]} 0-1

[Event "Late-Titled-Tuesday-Blitz-February-13-2024"]
[Site "Chess.com"]
[Date "2024.02.13"]
[Round "4"]
[White "shirovin"]
[Black "gunslinger222"]
[Result "0-1"]
[WhiteElo "2099"]
[BlackElo "2263"]
[TimeControl "180+1"]
[EndTime "14:38:02 PST"]
[Termination "gunslinger222 won on time"]

1. e4 {[%clk 0:03:00.9]} 1... d5 {[%clk 0:03:00.9]} 2. exd5 {[%clk 0:02:58.4]}
2... Qxd5 {[%clk 0:03:01.8]} 3. Nc3 {[%clk 0:02:58.2]} 3... Qa5 {[%clk
0:03:02.5]} 4. d4 {[%clk 0:02:58.5]} 4... Nf6 {[%clk 0:03:02.6]} 5. Bd2 {[%clk
0:02:56.3]} 5... c6 {[%clk 0:02:58.1]} 6. Nf3 {[%clk 0:02:55.6]} 6... Bg4 {[%clk
0:02:55]} 7. h3 {[%clk 0:02:53.2]} 7... Bxf3 {[%clk 0:02:53.1]} 8. Qxf3 {[%clk
0:02:50.8]} 8... Qb6 {[%clk 0:02:52.6]} 9. O-O-O {[%clk 0:02:45.4]} 9... e6
{[%clk 0:02:50.9]} 10. Bg5 {[%clk 0:02:39.7]} 10... Nbd7 {[%clk 0:02:45.9]} 11.
Bc4 {[%clk 0:02:20.2]} 11... Bb4 {[%clk 0:02:44.7]} 12. Ne4 {[%clk 0:02:03.5]}
12... Be7 {[%clk 0:01:59.4]} 13. Rhe1 {[%clk 0:01:16.9]} 13... O-O {[%clk
0:01:53.1]} 14. g4 {[%clk 0:01:08.2]} 14... Qb4 {[%clk 0:01:32.4]} 15. Bd3
{[%clk 0:01:04.2]} 15... Qa5 {[%clk 0:01:30.9]} 16. Kb1 {[%clk 0:00:41.1]} 16...
Rad8 {[%clk 0:01:09]} 17. h4 {[%clk 0:00:37.9]} 17... Rfe8 {[%clk 0:00:57.5]}
18. Bd2 {[%clk 0:00:31.1]} 18... Qb6 {[%clk 0:00:55]} 19. g5 {[%clk 0:00:27.5]}
19... Nd5 {[%clk 0:00:51.7]} 20. c3 {[%clk 0:00:20.3]} 20... Ba3 {[%clk
0:00:50.2]} 21. Bc1 {[%clk 0:00:19.3]} 21... c5 {[%clk 0:00:41.5]} 22. Nxc5
{[%clk 0:00:17.6]} 22... Nxc3+ {[%clk 0:00:39.2]} 23. Ka1 {[%clk 0:00:15.9]}
23... Nxd1 {[%clk 0:00:38.3]} 24. Nxd7 {[%clk 0:00:14.3]} 24... Bxb2+ {[%clk
0:00:36.8]} 25. Kb1 {[%clk 0:00:10.4]} 25... Rxd7 {[%clk 0:00:35.4]} 26. Qxd1
{[%clk 0:00:05.4]} 26... Bxc1+ {[%clk 0:00:31.2]} 27. Kxc1 {[%clk 0:00:04.9]}
27... Rc8+ {[%clk 0:00:30.5]} 28. Bc2 {[%clk 0:00:04.2]} 28... Rxd4 {[%clk
0:00:28.5]} 29. Qe2 {[%clk 0:00:03.9]} 29... Rdc4 {[%clk 0:00:26.6]} 0-1